[Event "ESTCC-50 2025"]
[Site "Swidnica"]
[Date "2025.04.13"]
[Round "9.12"]
[White "Zaremba, Artur"]
[Black "Wielosz, Jaroslaw"]
[Result "1-0"]
[Annotator "ChessBase"]
[ECO "C49"]
[WhiteElo "2133"]
[BlackElo "1939"]
[PlyCount "81"]
[EventDate "2025.04.05"]
[EventType "team-tourn"]
[EventCountry "POL"]
[SourceTitle "playchess.com"]
[Source "ChessBase"]
[SourceQuality "1"]
[WhiteTeam "Poland"]
[BlackTeam "Poland"]
[WhiteTeamCountry "POL"]
[BlackTeamCountry "POL"]
[TimeControl "40/5400+30:1800+30"]

1. e4 {[%emt 0:00:06]} e5 {[%emt 0:00:09]} 2. Nf3 {[%emt 0:00:20]} Nc6 {[%emt 0:00:08]} 3. Nc3 {[%emt 0:00:14]} Nf6 {[%emt 0:00:15]} 4. Bb5 {[%emt 0:00:13]} Bb4 {[%emt 0:00:22]} 5. d3 {[%emt 0:00:32]} d6 {[%emt 0:00:40]} 6. O-O {[%emt 0:00:58]} O-O {[%emt 0:00:51]} 7. Bg5 {[%emt 0:00:42]} Bxc3 {[%emt 0:00:25]} 8. bxc3 {[%emt 0:00:06]} Qe7 {[%emt 0:01:23]} 9. Bxc6 {[%emt 0:01:17]} bxc6 {[%emt 0:00:13]} 10. h3 {[%emt 0:00:24]} Qe6 {[%emt 0:07:12]} 11. c4 {[%emt 0:03:22]} Nd7 {[%emt 0:02:39]} 12. Nh4 {[%emt 0:01:37]} f6 {[%emt 0:12:19]} 13. Be3 {[%emt 0:03:30]} Re8 {[%emt 0:07:11]} 14. Nf5 {[%emt 0:02:20]} Kh8 {[%emt 0:10:47]} 15. Qg4 {[%emt 0:09:57]} Qf7 {[%emt 0:03:58]} 16. f4 {[%emt 0:02:22]} Nf8 {[%emt 0:03:30]} 17. fxe5 {[%emt 0:01:18]} Rxe5 {[%emt 0:01:26]} 18. Bd4 {[%emt 0:03:00]} Bxf5 {[%emt 0:00:25]} 19. exf5 {[%emt 0:01:01]} Re7 {[%emt 0:02:19]} 20. Qf3 {[%emt 0:03:08]} Qe8 {[%emt 0:04:42]} 21. Rab1 {[%emt 0:01:26]} c5 {[%emt 0:01:16]} 22. Bc3 {[%emt 0:01:03]} Rb8 {[%emt 0:02:02]} 23. Rb3 {[%emt 0:00:21]} Rb6 {[%emt 0:01:41]} 24. Kf2 {[%emt 0:03:49]} Nd7 {[%emt 0:02:43]} 25. g4 {[%emt 0:03:08]} Ne5 {[%emt 0:01:54]} 26. Qd1 {[%emt 0:00:37]} Qc6 {[%emt 0:06:01]} 27. Re1 {[%emt 0:00:31]} Qe8 {[%emt 0:03:24]} 28. Bxe5 {[%emt 0:08:27]} Rxe5 {[%emt 0:00:25]} 29. Rxe5 {[%emt 0:00:36]} fxe5 {[%emt 0:08:24]} 30. Qf3 {[%emt 0:01:25]} Qd8 {[%emt 0:01:28]} 31. Kg3 {[%emt 0:00:17]} h6 {[%emt 0:00:46]} 32. h4 {[%emt 0:00:49]} Rxb3 {[%emt 0:03:16]} 33. axb3 {[%emt 0:00:34]} Qe7 {[%emt 0:05:16]} 34. c3 {[%emt 0:11:24]} Kg8 {[%emt 0:01:27]} 35. Qd5+ {[%emt 0:00:53]} Kf8 {[%emt 0:00:58]} 36. b4 {[%emt 0:00:26]} cxb4 {[%emt 0:00:51]} 37. cxb4 {[%emt 0:00:06]} Qd7 {[%emt 0:01:20]} 38. b5 {[%emt 0:01:38]} h5 {[%emt 0:01:55]} 39. Qa8+ {[%emt 0:02:04]} Ke7 {[%emt 0:02:11]} 40. Qg8 {[%emt 0:00:00]} Kf6 {[%emt 0:00:00]} 41. Qf8+ {[%emt 0:00:50]} 1-0

[Event "ESTCC-50 2025"]
[Site "Swidnica"]
[Date "2025.04.13"]
[Round "9.13"]
[White "Laszewicz, Pawel"]
[Black "Lalic, Susan K"]
[Result "0-1"]
[Annotator "ChessBase"]
[ECO "B01"]
[WhiteElo "2011"]
[BlackElo "2227"]
[PlyCount "98"]
[EventDate "2025.04.05"]
[EventType "team-tourn"]
[EventCountry "POL"]
[SourceTitle "playchess.com"]
[Source "ChessBase"]
[SourceQuality "1"]
[WhiteTeam "Poland"]
[BlackTeam "England"]
[WhiteTeamCountry "POL"]
[BlackTeamCountry "ENG"]
[TimeControl "40/5400+30:1800+30"]

1. e4 {[%emt 0:00:04]} c6 {[%emt 0:00:18]} 2. c4 {[%emt 0:00:31]} d5 {[%emt 0:00:20]} 3. exd5 {[%emt 0:00:10]} Nf6 {[%emt 0:00:07]} 4. Nc3 {[%emt 0:03:29]} cxd5 {[%emt 0:00:21]} 5. cxd5 {[%emt 0:00:14]} Nxd5 {[%emt 0:00:34]} 6. Nf3 {[%emt 0:02:01]} Nc6 {[%emt 0:02:01]} 7. Bc4 {[%emt 0:07:20]} Nxc3 {[%emt 0:10:46]} 8. bxc3 {[%emt 0:03:08]} e6 {[%emt 0:00:23]} 9. d4 {[%emt 0:02:27]} Be7 {[%emt 0:00:51]} 10. h4 {[%emt 0:00:38]} h6 {[%emt 0:12:15]} 11. Qe2 {[%emt 0:06:07]} a6 {[%emt 0:07:33]} 12. a4 {[%emt 0:11:54]} Qc7 {[%emt 0:05:09]} 13. Bd2 {[%emt 0:04:07]} Bd7 {[%emt 0:02:53]} 14. Bd3 {[%emt 0:21:03]} Bf6 {[%emt 0:14:56]} 15. O-O {[%emt 0:08:39]} Kf8 {[%emt 0:07:19]} 16. Rfe1 {[%emt 0:04:45]} g6 {[%emt 0:08:29]} 17. h5 {[%emt 0:05:10]} gxh5 {[%emt 0:12:29]} 18. Ne5 {[%emt 0:01:39]} Nxe5 {[%emt 0:00:45]} 19. dxe5 {[%emt 0:00:09]} Bg5 {[%emt 0:00:37]} 20. f4 {[%emt 0:01:12]} Bh4 {[%emt 0:02:23]} 21. Qxh5 {[%emt 0:01:04]} Bxe1 {[%emt 0:01:25]} 22. Rxe1 {[%emt 0:00:15]} Bc6 {[%emt 0:00:24]} 23. f5 {[%emt 0:01:42]} Rd8 {[%emt 0:04:19]} 24. Bxh6+ {[%emt 0:05:51]} Ke8 {[%emt 0:00:34]} 25. Bf1 {[%emt 0:00:52]} Bd5 {[%emt 0:01:14]} 26. Qg5 {[%emt 0:01:37]} Kd7 {[%emt 0:02:18]} 27. c4 {[%emt 0:00:48]} Rdg8 {[%emt 0:00:45]} 28. fxe6+ {[%emt 0:00:58]} Bxe6 {[%emt 0:00:16]} 29. Qf6 {[%emt 0:01:37]} Kc8 {[%emt 0:01:02]} 30. Be3 {[%emt 0:01:09]} Rh5 {[%emt 0:00:22]} 31. Qf2 {[%emt 0:00:36]} Rgh8 {[%emt 0:00:36]} 32. Qd2 {[%emt 0:04:01]} Qxe5 {[%emt 0:01:45]} 33. Bf4 {[%emt 0:00:35]} Qc5+ {[%emt 0:00:15]} 34. Re3 {[%emt 0:00:17]} Rd8 {[%emt 0:00:54]} 35. Qc3 {[%emt 0:00:33]} Rf5 {[%emt 0:00:37]} 36. g3 {[%emt 0:00:08]} Rxf4 {[%emt 0:00:33]} 37. gxf4 {[%emt 0:00:09]} Rg8+ {[%emt 0:00:07]} 38. Kf2 {[%emt 0:00:09]} Qh5 {[%emt 0:00:19]} 39. Bh3 {[%emt 0:02:06]} Qh4+ {[%emt 0:00:25]} 40. Kf1 {[%emt 0:00:00]} Bxh3+ {[%emt 0:00:00]} 41. Rxh3 {[%emt 0:01:14]} Qxf4+ {[%emt 0:07:01]} 42. Rf3 {[%emt 0:00:02]} Qg4 {[%emt 0:00:56]} 43. Ke1 {[%emt 0:03:54]} Qg1+ {[%emt 0:07:50]} 44. Kd2 {[%emt 0:01:16]} Rg2+ {[%emt 0:04:26]} 45. Kd3 {[%emt 0:00:34]} Qd1+ {[%emt 0:03:04]} 46. Ke3 {[%emt 0:01:03]} Re2+ {[%emt 0:00:21]} 47. Kf4 {[%emt 0:00:31]} Qd6+ {[%emt 0:00:06]} 48. Kg4 {[%emt 0:01:13]} Rg2+ {[%emt 0:00:44]} 49. Kh3 {[%emt 0:00:36]} Qh2# 0-1

[Event "ESTCC-50 2025"]
[Site "Swidnica"]
[Date "2025.04.13"]
[Round "9.14"]
[White "Lauterbach, Ingrid"]
[Black "Machlowski, Slawomir"]
[Result "0-1"]
[Annotator "NA"]
[ECO "A04"]
[WhiteElo "1998"]
[BlackElo "1963"]
[PlyCount "178"]
[EventDate "2025.04.05"]
[EventType "team-tourn"]
[EventCountry "POL"]
[SourceTitle "playchess.com"]
[Source "ChessBase"]
[SourceQuality "1"]
[WhiteTeam "England"]
[BlackTeam "Czech Republic"]
[WhiteTeamCountry "ENG"]
[BlackTeamCountry "CZE"]
[TimeControl "40/5400+30:1800+30"]

1. Nf3 {[%emt 0:00:02]} b6 {[%emt 0:00:43]} 2. e4 {[%emt 0:01:00]} Bb7 {[%emt 0:00:16]} 3. Nc3 {[%emt 0:00:22]} g6 {[%emt 0:00:51]} 4. d4 {[%emt 0:01:07]} Bg7 {[%emt 0:00:20]} 5. Bc4 {[%emt 0:03:10]} e6 {[%emt 0:00:39]} 6. O-O {[%emt 0:06:51]} Ne7 {[%emt 0:00:41]} 7. Bf4 {[%emt 0:07:53]} d6 {[%emt 0:04:59]} 8. Qd2 {[%emt 0:02:09]} O-O {[%emt 0:02:33]} 9. Bh6 {[%emt 0:04:58]} d5 {[%emt 0:04:23]} 10. exd5 {[%emt 0:05:22]} Nxd5 {[%emt 0:00:35]} 11. Bxg7 {[%emt 0:00:49]} Kxg7 {[%emt 0:00:11]} 12. Nxd5 {[%emt 0:00:11]} Bxd5 {[%emt 0:00:13]} 13. Be2 {[%emt 0:00:14]} Nd7 {[%emt 0:07:22]} 14. c4 {[%emt 0:02:20]} Bxf3 {[%emt 0:04:38]} 15. Bxf3 {[%emt 0:00:09]} Rc8 {[%emt 0:00:17]} 16. c5 {[%emt 0:00:45]} Nxc5 {[%emt 0:02:22]} 17. Qc3 {[%emt 0:02:44]} Nd7 {[%emt 0:00:52]} 18. Rac1 {[%emt 0:02:48]} Nf6 {[%emt 0:04:30]} 19. Bb7 {[%emt 0:03:45]} Rb8 {[%emt 0:04:58]} 20. Bc6 {[%emt 0:04:52]} Qd6 {[%emt 0:04:04]} 21. a3 {[%emt 0:03:24]} Rfd8 {[%emt 0:07:35]} 22. Rfd1 {[%emt 0:05:20]} e5 {[%emt 0:09:07]} 23. d5 {[%emt 0:00:50]} Kg8 {[%emt 0:00:43]} 24. g3 {[%emt 0:00:35]} a6 {[%emt 0:02:46]} 25. Qe3 {[%emt 0:03:49]} h5 {[%emt 0:02:48]} 26. h3 {[%emt 0:03:50]} e4 {[%emt 0:05:22]} 27. Qg5 {[%emt 0:11:16]} Nh7 {[%emt 0:02:45]} 28. Qh6 {[%emt 0:05:38]} Qe5 {[%emt 0:01:05]} 29. Rc3 {[%emt 0:01:12]} Qf5 {[%emt 0:04:02]} 30. h4 {[%emt 0:02:30]} Nf6 {[%emt 0:00:44]} 31. Qd2 {[%emt 0:10:07]} Rd6 {[%emt 0:01:15]} 32. Qe2 {[%emt 0:01:05]} a5 {[%emt 0:01:31]} 33. f3 {[%emt 0:02:39]} Rbd8 {[%emt 0:01:59]} 34. Rf1 {[%emt 0:00:59]} Nxd5 {[%emt 0:02:46]} 35. Bxd5 {[%emt 0:00:54]} Qxd5 {[%emt 0:00:21]} 36. fxe4 {[%emt 0:01:08]} Qd4+ {[%emt 0:03:17]} 37. Kh1 {[%emt 0:00:11]} R8d7 {[%emt 0:00:50]} 38. Qc2 {[%emt 0:01:01]} c5 {[%emt 0:01:34]} 39. Rcf3 {[%emt 0:00:41]} Re6 {[%emt 0:00:56]} 40. Rf4 {[%emt 0:00:00]} Qe3 {[%emt 0:00:00]} 41. Qa4 {[%emt 0:13:04]} Ree7 {[%emt 0:05:39]} 42. Qc6 {[%emt 0:02:33]} Qxg3 {[%emt 0:03:23]} 43. Qxb6 {[%emt 0:00:14]} Qh3+ {[%emt 0:09:55]} 44. Kg1 {[%emt 0:00:07]} Rd2 {[%emt 0:00:56]} 45. Qb8+ {[%emt 0:01:34]} Kg7 {[%emt 0:00:43]} 46. Rxf7+ {[%emt 0:00:16]} Rxf7 {[%emt 0:01:59]} 47. Qe5+ {[%emt 0:00:09]} Kf8 {[%emt 0:06:19]} 48. Qh8+ {[%emt 0:01:18]} Ke7 {[%emt 0:00:55]} 49. Qe5+ {[%emt 0:00:09]} Qe6 {[%emt 0:00:36]} 50. Qg5+ {[%emt 0:02:39]} Ke8 {[%emt 0:03:04]} 51. Rxf7 {[%emt 0:02:50]} Kxf7 {[%emt 0:02:28]} 52. Qxd2 {[%emt 0:00:19]} Qxe4 {[%emt 0:00:19]} 53. Qxa5 {[%emt 0:03:45]} Qb1+ {[%emt 0:00:38]} 54. Kg2 {[%emt 0:00:15]} Qxb2+ {[%emt 0:00:04]} 55. Kh3 {[%emt 0:01:10]} Qb3+ {[%emt 0:00:21]} 56. Kh2 {[%emt 0:00:23]} Qc2+ {[%emt 0:00:09]} 57. Kg3 {[%emt 0:01:32]} Qd3+ {[%emt 0:00:15]} 58. Kf2 {[%emt 0:03:26]} Qd4+ {[%emt 0:00:24]} 59. Ke2 {[%emt 0:00:18]} Qxh4 {[%emt 0:02:08]} 60. Kd1 {[%emt 0:01:43]} Qd4+ {[%emt 0:00:21]} 61. Ke2 {[%emt 0:00:44]} h4 {[%emt 0:01:05]} 62. Qc7+ {[%emt 0:00:10]} Kf6 {[%emt 0:00:13]} 63. Qc6+ {[%emt 0:00:19]} Ke5 {[%emt 0:01:27]} 64. Qe8+ {[%emt 0:01:09]} Kf4 {[%emt 0:00:46]} 65. Qf7+ {[%emt 0:00:31]} Kg5 {[%emt 0:00:42]} 66. Qe7+ {[%emt 0:00:17]} Kg4 {[%emt 0:00:43]} 67. Qe6+ {[%emt 0:01:18]} Kh5 {[%emt 0:00:26]} 68. a4 {[%emt 0:02:10]} Qxa4 {[%emt 0:02:00]} 69. Qe5+ {[%emt 0:00:39]} Kg4 {[%emt 0:00:31]} 70. Qe6+ {[%emt 0:00:27]} Kg3 {[%emt 0:01:17]} 71. Qe3+ {[%emt 0:00:47]} Kg4 {[%emt 0:00:36]} 72. Qe6+ {[%emt 0:00:35]} Kh5 {[%emt 0:00:29]} 73. Qe5+ {[%emt 0:00:20]} g5 {[%emt 0:00:44]} 74. Qh8+ {[%emt 0:00:44]} Kg6 {[%emt 0:00:18]} 75. Qg8+ {[%emt 0:00:16]} Kf6 {[%emt 0:00:14]} 76. Qh8+ {[%emt 0:00:38]} Ke6 {[%emt 0:00:15]} 77. Qg8+ {[%emt 0:00:14]} Kd6 {[%emt 0:00:58]} 78. Qb8+ {[%emt 0:01:12]} Kd5 {[%emt 0:00:49]} 79. Qg8+ {[%emt 0:00:10]} Kd4 {[%emt 0:00:33]} 80. Qd8+ {[%emt 0:00:16]} Kc4 {[%emt 0:00:41]} 81. Qd3+ {[%emt 0:00:22]} Kb4 {[%emt 0:00:19]} 82. Qd2+ {[%emt 0:00:10]} Kb5 {[%emt 0:00:24]} 83. Qd7+ {[%emt 0:00:38]} Kb4 {[%emt 0:00:12]} 84. Qd2+ {[%emt 0:00:08]} Kb3 {[%emt 0:00:12]} 85. Qe3+ {[%emt 0:00:47]} Kb2 {[%emt 0:00:32]} 86. Qe5+ {[%emt 0:00:36]} Qd4 {[%emt 0:00:21]} 87. Qxg5 {[%emt 0:01:08]} h3 {[%emt 0:00:21]} 88. Qh6 {[%emt 0:00:21]} Qe4+ {[%emt 0:00:45]} 89. Kd1 {[%emt 0:00:30]} Qc2+ {[%emt 0:00:22]} 0-1

[Event "ESTCC-50 2025"]
[Site "Swidnica"]
[Date "2025.04.13"]
[Round "9.15"]
[White "Kruczynski, Marek"]
[Black "Regan, Natasha K"]
[Result "1/2-1/2"]
[Annotator "ChessBase"]
[ECO "C20"]
[WhiteElo "1862"]
[BlackElo "2056"]
[PlyCount "36"]
[EventDate "2025.04.05"]
[EventType "team-tourn"]
[EventCountry "POL"]
[SourceTitle "playchess.com"]
[Source "ChessBase"]
[SourceQuality "1"]
[WhiteTeam "Poland"]
[BlackTeam "England"]
[WhiteTeamCountry "POL"]
[BlackTeamCountry "ENG"]
[TimeControl "40/5400+30:1800+30"]

1. e4 {[%emt 0:00:08]} e5 {[%emt 0:00:15]} 2. Ne2 {[%emt 0:00:37]} Nf6 {[%emt 0:04:06]} 3. f4 {[%emt 0:01:35]} d5 {[%emt 0:05:15]} 4. fxe5 {[%emt 0:02:35]} Nxe4 {[%emt 0:00:39]} 5. d3 {[%emt 0:01:14]} Ng5 {[%emt 0:04:29]} 6. h4 {[%emt 0:13:52]} Ne6 {[%emt 0:01:21]} 7. d4 {[%emt 0:01:51]} Be7 {[%emt 0:06:00]} 8. g3 {[%emt 0:07:19]} c5 {[%emt 0:01:23]} 9. c3 {[%emt 0:01:52]} Nc6 {[%emt 0:01:13]} 10. Bg2 {[%emt 0:02:51]} Qb6 {[%emt 0:05:58]} 11. Bxd5 {[%emt 0:16:35]} cxd4 {[%emt 0:03:56]} 12. Bxc6+ {[%emt 0:08:54]} Qxc6 {[%emt 0:01:52]} 13. O-O {[%emt 0:03:32]} dxc3 {[%emt 0:04:47]} 14. Nbxc3 {[%emt 0:06:04]} Qc5+ {[%emt 0:01:48]} 15. Kh2 {[%emt 0:04:08]} Qxe5 {[%emt 0:03:14]} 16. Bf4 {[%emt 0:02:07]} Nxf4 {[%emt 0:02:30]} 17. Nxf4 {[%emt 0:00:36]} O-O {[%emt 0:02:56]} 18. Re1 {[%emt 0:01:20]} Qc5 {[%emt 0:14:49]} 1/2-1/2

[Event "ESTCC-50 2025"]
[Site "Swidnica"]
[Date "2025.04.13"]
[Round "9.16"]
[White "Fink-Nunn, Petra"]
[Black "Szydelko, Kazimierz"]
[Result "1-0"]
[Annotator "NA"]
[ECO "B90"]
[WhiteElo "1997"]
[BlackElo "1798"]
[PlyCount "105"]
[EventDate "2025.04.05"]
[EventType "team-tourn"]
[EventCountry "POL"]
[SourceTitle "playchess.com"]
[Source "ChessBase"]
[SourceQuality "1"]
[WhiteTeam "England"]
[BlackTeam "Poland"]
[WhiteTeamCountry "ENG"]
[BlackTeamCountry "POL"]
[TimeControl "40/5400+30:1800+30"]

1. e4 {[%emt 0:00:03]} c5 {[%emt 0:00:15]} 2. Nf3 {[%emt 0:00:09]} d6 {[%emt 0:00:17]} 3. d4 {[%emt 0:00:10]} cxd4 {[%emt 0:00:02]} 4. Nxd4 {[%emt 0:00:08]} Nf6 {[%emt 0:00:09]} 5. Nc3 {[%emt 0:00:03]} a6 {[%emt 0:00:44]} 6. h3 {[%emt 0:00:45]} b5 {[%emt 0:03:06]} 7. g4 {[%emt 0:02:02]} Bb7 {[%emt 0:01:01]} 8. Bg2 {[%emt 0:01:11]} e6 {[%emt 0:01:58]} 9. a3 {[%emt 0:05:09]} Qc7 {[%emt 0:01:05]} 10. O-O {[%emt 0:01:28]} Be7 {[%emt 0:00:54]} 11. g5 {[%emt 0:12:14]} Nfd7 {[%emt 0:01:19]} 12. f4 {[%emt 0:00:22]} Nc6 {[%emt 0:02:10]} 13. Be3 {[%emt 0:29:37]} O-O {[%emt 0:06:38]} 14. f5 {[%emt 0:02:33]} Nxd4 {[%emt 0:02:27]} 15. Qxd4 {[%emt 0:00:39]} e5 {[%emt 0:13:48]} 16. Qd3 {[%emt 0:05:30]} Kh8 {[%emt 0:11:10]} 17. Qe2 {[%emt 0:03:32]} Rg8 {[%emt 0:10:15]} 18. Qg4 {[%emt 0:07:32]} Nf8 {[%emt 0:14:35]} 19. h4 {[%emt 0:02:29]} Qc4 {[%emt 0:01:08]} 20. Rf3 {[%emt 0:03:08]} d5 {[%emt 0:00:46]} 21. Bf1 {[%emt 0:00:12]} Qc7 {[%emt 0:02:32]} 22. exd5 {[%emt 0:00:11]} Rd8 {[%emt 0:01:16]} 23. Rd1 {[%emt 0:00:08]} Bc5 {[%emt 0:02:35]} 24. Qe4 {[%emt 0:02:50]} g6 {[%emt 0:04:54]} 25. Kh1 {[%emt 0:03:07]} Nd7 {[%emt 0:07:29]} 26. Bg2 {[%emt 0:05:01]} Qd6 {[%emt 0:01:03]} 27. fxg6 {[%emt 0:02:25]} fxg6 {[%emt 0:00:29]} 28. Rf7 {[%emt 0:00:14]} Bxe3 {[%emt 0:04:09]} 29. Qxe3 Rge8 {[%emt 0:01:02]} 30. Ne4 {[%emt 0:04:16]} Qb8 {[%emt 0:00:43]} 31. Bh3 {[%emt 0:02:58]} Nf8 {[%emt 0:01:32]} 32. Nf6 {[%emt 0:00:57]} Qa8 {[%emt 0:01:30]} 33. Rxb7 {[%emt 0:03:19]} Qxb7 {[%emt 0:00:12]} 34. Nxe8 {[%emt 0:00:04]} Rxe8 {[%emt 0:00:24]} 35. Qe4 {[%emt 0:01:30]} a5 {[%emt 0:00:57]} 36. Bg2 {[%emt 0:00:23]} Nd7 {[%emt 0:01:21]} 37. Rf1 Nc5 {[%emt 0:00:40]} 38. Qf3 {[%emt 0:00:35]} e4 {[%emt 0:00:47]} 39. Qf6+ {[%emt 0:00:08]} Qg7 {[%emt 0:00:23]} 40. Qc6 {[%emt 0:00:00]} Qe7 {[%emt 0:00:00]} 41. d6 {[%emt 0:13:20]} Qe5 {[%emt 0:01:35]} 42. b4 {[%emt 0:00:24]} axb4 {[%emt 0:03:05]} 43. axb4 {[%emt 0:00:01]} Na4 {[%emt 0:06:07]} 44. d7 {[%emt 0:01:38]} Rd8 {[%emt 0:00:28]} 45. Bxe4 {[%emt 0:04:48]} Nc3 {[%emt 0:04:17]} 46. Bf3 {[%emt 0:07:24]} Qd4 {[%emt 0:01:49]} 47. Bg4 {[%emt 0:01:29]} Ne4 {[%emt 0:00:51]} 48. Qc7 {[%emt 0:00:34]} Rxd7 {[%emt 0:03:05]} 49. Qxd7 {[%emt 0:04:14]} Nf2+ {[%emt 0:04:44]} 50. Rxf2 {[%emt 0:02:15]} Qxf2 {[%emt 0:00:12]} 51. Qd8+ {[%emt 0:00:09]} Kg7 {[%emt 0:00:19]} 52. Qe7+ {[%emt 0:00:20]} Kh8 {[%emt 0:00:20]} 53. Qf6+ {[%emt 0:00:12]} 1-0